bitfinex/quotes_ETHUSD_20251110
["timestamp","ask_amount","ask_price","bid_price","bid_amount"]
[1762767562107,0.4642,3617.4,3617.3,4.60459906]
[1762767562783,2.76435596,3617.5,3617.3,4.60459906]
[1762767563401,0.1916,3617.7,3617.3,4.60459906]
[1762767563610,2.76435462,3617.5,3617.3,4.60459906]
[1762767564222,3.22861643,3617.4,3617.3,4.60459906]
[1762767564511,3.93869389,3617.4,3617.3,3.87]
[1762767565499,3.93869389,3617.4,3617.0,0.73459906]
[1762767565500,2.76466755,3617.1,3617.0,0.73459906]
[1762767566299,0.4735,3617.1,3617.0,0.73459906]
[1762767566661,2.76457046,3617.2,3617.0,0.73459906]
[1762767566865,0.4735,3617.1,3617.0,0.73459906]
[1762767567297,0.4735,3617.1,3616.8,0.97946541]
[1762767567473,0.1916,3617.7,3617.0,0.499]
[1762767567676,0.2583616,3617.6,3617.4,0.73508515]
[1762767567892,0.4775,3618.4,3617.4,0.33039124]
[1762767568105,0.25831892,3618.3,3617.6,0.73474293]
[1762767568317,0.25831892,3618.2,3617.7,0.73474293]
[1762767568527,0.25831892,3618.1,3617.9,0.73474293]
[1762767568685,0.25831892,3618.0,3617.9,0.76238327]
[1762767568884,0.25831892,3618.0,3617.9,1.09277451]
[1762767569107,0.25831892,3618.0,3617.9,2.3263385]
[1762767569306,1e-08,3618.9,3617.9,1.56395523]
[1762767569528,0.25841101,3618.7,3618.2,0.73467831]
[1762767569821,0.25841101,3618.6,3618.2,0.73467831]
[1762767569992,0.25841101,3618.5,3618.2,0.73467831]
[1762767570198,0.25841101,3618.4,3618.2,1.13856997]
[1762767570421,0.25834072,3618.3,3618.2,1.46872312]
[1762767570722,0.6664,3618.8,3618.2,1.63733188]
[1762767571291,0.6664,3618.8,3618.3,0.73444022]
[1762767571509,0.1889,3618.8,3618.3,0.73444022]
[1762767572011,0.6664,3618.8,3618.3,0.73444022]
[1762767572922,0.4735,3618.4,3618.3,0.30886284]
[1762767573228,0.4775,3618.7,3618.3,0.30886284]
[1762767573423,0.1889,3618.8,3618.3,0.30886284]
[1762767573724,1e-08,3618.9,3618.2,0.73444022]
[1762767573922,0.67090001,3618.9,3618.3,0.32764868]
[1762767574091,0.67090001,3618.9,3618.2,1.4779975]
[1762767574292,0.4735,3618.3,3618.2,1.4779975]
[1762767574492,0.4735,3618.3,3618.2,0.73444022]
[1762767574915,0.4735,3618.3,3618.2,1.0620889]
[1762767575293,0.4775,3618.6,3618.2,1.0620889]
[1762767575497,0.19340001,3618.9,3618.3,0.32764868]
[1762767575698,0.67090001,3618.9,3618.3,0.32764868]
[1762767576101,0.67010001,3618.9,3618.2,0.73444022]
[1762767576319,0.19260001,3618.9,3618.3,0.32764868]
[1762767576518,0.4775,3618.8,3618.3,0.32764868]
[1762767577837,0.19260001,3618.9,3618.3,1.0620889]
[1762767578002,0.534,3620.5,3618.3,1.0620889]
[1762767578003,0.4775,3619.3,3618.6,0.73444022]
[1762767578403,0.001,3618.6,3618.5,0.73444022]
[1762767579042,0.001,3618.6,3618.5,1.71284022]
[1762767579219,0.001,3618.6,3618.5,0.9784]
[1762767579541,0.001,3618.6,3618.5,1.71231809]
[1762767580253,0.001,3618.6,3618.5,1.23291809]
[1762767580413,0.001,3618.6,3618.5,1.94441629]
[1762767580597,0.001,3618.6,3618.5,1.2104982]
[1762767581099,0.001,3618.6,3618.5,2.28463997]
[1762767581303,0.001,3618.6,3618.5,1.2104982]
[1762767582822,0.001,3618.6,3618.5,1.6898982]
[1762767583057,0.001,3618.6,3618.5,4.93968371]
[1762767583275,0.001,3618.6,3618.5,6.19939571]
[1762767583653,0.001,3618.6,3618.5,2.9496102]
[1762767585740,0.001,3618.6,3618.5,6.60489971]
[1762767585940,0.001,3618.6,3618.5,3.3551142]
[1762767587892,0.001,3618.6,3618.5,4.81932485]
[1762767588741,0.001,3618.6,3618.5,5.15954853]
[1762767589576,0.001,3618.6,3618.5,3.49433253]
[1762767589876,0.001,3618.6,3618.5,2.43562588]
[1762767590042,0.001,3618.6,3618.5,3.69533788]
[1762767590437,0.001,3618.6,3618.5,3.3551142]
[1762767591005,0.001,3618.6,3618.5,3.21593788]
[1762767591770,0.001,3618.6,3618.5,0.499]
[1762767592503,0.4745,3618.6,3618.3,1.07271366]
[1762767592705,0.9503,3618.6,3618.3,0.34047368]
[1762767592892,0.193,3618.4,3618.1,0.73223998]
[1762767593094,0.001,3618.6,3618.1,0.73223998]
[1762767593405,0.4768,3618.6,3618.1,0.73223998]
[1762767593611,0.4768,3618.6,3618.1,1.07271366]
[1762767593821,0.4768,3618.6,3618.1,0.73223998]
[1762767593822,0.4671,3618.2,3618.1,0.73223998]
[1762767593987,0.15832582,3618.2,3618.0,0.73223998]
[1762767594321,0.15832582,3618.2,3618.0,0.94664051]
[1762767594521,0.4758,3618.5,3618.0,1.22968351]
[1762767594671,0.4758,3618.5,3618.1,1.01528298]
[1762767596512,0.4758,3618.5,3618.2,0.73223998]
[1762767596707,0.4758,3618.5,3618.3,4.19462633]
[1762767597110,0.356,3618.4,3618.3,4.19462633]
[1762767597412,0.61433179,3618.4,3618.3,4.92686631]
[1762767598218,0.25833179,3618.4,3618.3,5.40256631]
[1762767598427,0.001,3618.6,3618.3,5.40256631]
[1762767598610,0.25839355,3618.5,3618.3,4.92903741]
[1762767598927,0.3366,3618.4,3618.3,4.92903741]
[1762767599426,0.59501544,3618.4,3618.3,4.92903741]
[1762767599914,1.08881544,3618.4,3618.3,4.92903741]
[1762767600108,0.59501544,3618.4,3618.3,4.92903741]
[1762767600298,1.08801544,3618.4,3618.3,4.60441108]
[1762767600504,1.08801544,3618.4,3618.3,3.87]
[1762767601133,1.08801544,3618.4,3618.1,0.002]
[1762767601424,0.0049,3618.2,3618.1,0.002]
[1762767601629,0.26331544,3618.2,3618.1,0.002]
[1762767601925,0.75871544,3618.2,3618.1,0.002]
[1762767603392,0.75871544,3618.2,3618.1,3.872]
[1762767603585,0.75871544,3618.2,3618.1,0.002]
[1762767603586,4.00850095,3618.2,3618.1,0.002]
[1762767603801,4.00850095,3618.2,3617.8,3.87]
[1762767603998,3.77728551,3617.9,3617.4,0.002]
[1762767604198,0.005,3617.5,3617.4,0.002]
[1762767604423,0.26341544,3617.5,3617.4,0.002]
[1762767604736,0.75881544,3617.5,3617.4,0.002]
[1762767605734,0.75881544,3617.5,3617.4,0.30511296]
[1762767606928,0.1966,3618.0,3617.4,0.82006296]
[1762767607129,0.1966,3618.0,3617.4,0.95622036]
[1762767607130,0.3326,3617.5,3617.4,0.95622036]
[1762767607426,0.3326,3617.5,3617.4,0.002]
[1762767607632,0.8263,3617.5,3617.4,0.002]
[1762767608139,0.8263,3617.5,3617.4,0.34436296]
[1762767608829,0.3326,3617.5,3617.4,0.37902962]
[1762767609346,0.1966,3618.0,3617.4,0.85472962]
[1762767609535,0.1966,3618.0,3617.4,0.4777]
[1762767609704,0.1966,3618.0,3617.4,0.98188]
[1762767609705,0.25781378,3617.9,3617.4,0.98188]
[1762767609911,0.1966,3618.0,3617.5,3.87]
[1762767610110,0.25780955,3617.9,3617.5,3.87]
[1762767610306,0.3326,3617.6,3617.5,3.87]
[1762767610531,0.1966,3618.0,3617.5,3.87]
[1762767610845,0.75317812,3617.9,3617.5,3.87]
[1762767611017,2.7642636,3617.6,3617.5,3.87]
[1762767611704,3.0968636,3617.6,3617.5,3.87]
[1762767612639,3.5905636,3617.6,3617.5,3.87]
[1762767613659,0.8263,3617.6,3617.5,3.87]
[1762767613826,0.3326,3617.6,3617.5,4.2572]
[1762767614223,0.4937,3617.9,3617.5,4.2572]
[1762767614440,2.7642636,3617.6,3617.5,3.87]
[1762767614660,3.45601895,3618.0,3617.5,4.23598429]
[1762767614963,2.76418719,3617.7,3617.6,0.36598429]
[1762767615258,2.76428125,3617.6,3617.4,0.002]
[1762767615458,2.76421009,3617.7,3617.4,0.002]
[1762767615658,2.76426714,3617.6,3617.5,0.86208429]
[1762767615859,2.76426714,3617.6,3617.5,0.36598429]
[1762767616064,2.76434001,3617.5,3617.4,0.83187437]
[1762767616358,3.26464001,3617.5,3617.4,0.83187437]
[1762767616927,3.52241951,3617.5,3617.4,0.002]
[1762767617260,3.52240755,3617.5,3617.4,0.002]
[1762767622359,6.77219306,3617.5,3617.4,0.002]
[1762767624197,8.03110506,3617.5,3617.4,0.002]
[1762767624401,6.01435479,3617.2,3617.1,0.01]
[1762767624605,6.59982233,3617.2,3617.1,0.01]
[1762767624779,7.07192233,3617.2,3617.1,0.01]
[1762767625666,7.07236196,3617.2,3617.1,0.01]
[1762767626667,8.33207396,3617.2,3617.1,0.01]
[1762767628578,8.33207396,3617.2,3617.1,1e-08]
[1762767631417,8.33207396,3617.2,3616.4,0.002]
[1762767631418,2.76510438,3616.5,3616.4,0.002]
[1762767631619,6.59789706,3616.5,3616.4,0.002]
[1762767631920,7.06999706,3616.5,3616.4,0.002]
[1762767633412,8.32970906,3616.5,3616.4,0.002]
[1762767633612,8.32970906,3616.5,3616.1,0.012]
[1762767633613,2.79663377,3616.2,3616.1,1e-08]
[1762767633817,6.30462645,3616.2,3616.1,1e-08]
[1762767634021,6.77672645,3616.2,3616.1,1e-08]
[1762767635010,13.28952851,3616.2,3616.1,1e-08]
[1762767635825,14.95474451,3616.2,3616.1,1e-08]
[1762767636025,11.704959,3616.2,3616.1,1e-08]
[1762767638654,4.31455294,3616.2,3616.1,1e-08]
[1762767638999,7.57095397,3616.2,3616.1,1e-08]
[1762767639738,6.31124197,3616.2,3616.1,1e-08]
[1762767639902,3.02354094,3616.2,3616.1,1.14030001]
[1762767640097,0.25820717,3616.2,3616.1,1.48633402]
[1762767640301,0.25820717,3616.2,3616.1,1.63516742]
[1762767640527,0.1962,3617.2,3616.1,1.63516742]
[1762767640528,2.76498616,3616.7,3616.1,1.63516742]
[1762767640730,0.25743557,3616.6,3616.2,0.85125817]
[1762767640934,0.25743557,3616.5,3616.2,0.85125817]
[1762767641123,0.25743557,3616.4,3616.3,0.4891]
[1762767641325,0.25743557,3616.4,3616.3,1.02518244]
[1762767641534,3.02261641,3616.4,3616.3,1.49088244]
[1762767641843,3.02261641,3616.4,3616.3,0.6672776]
[1762767642321,3.02261641,3616.4,3616.3,0.4657]
[1762767642941,3.02261641,3616.4,3616.3,0.9548]
[1762767642942,0.25743557,3616.4,3616.3,0.9548]
[1762767643108,0.25743557,3616.4,3616.3,1.29958872]
[1762767643303,0.25743557,3616.4,3616.3,0.9548]
[1762767643564,0.25743557,3616.4,3616.3,1.49663716]
[1762767644102,0.25743557,3616.4,3616.3,1.15184844]
[1762767644532,0.25743557,3616.4,3616.3,1.49663716]
[1762767644734,0.25743557,3616.4,3616.3,1.15184844]
[1762767644914,3.02261641,3616.4,3616.3,1.15184844]
[1762767645119,3.02261641,3616.4,3616.3,1.98193636]
[1762767645805,0.25743557,3616.4,3616.3,1.98193636]
[1762767648448,0.25663557,3616.4,3616.3,1.98193636]
[1762767651530,0.25763557,3616.4,3616.3,1.98193636]
[1762767654165,0.001,3616.4,3616.3,9.14350977]
[1762767654485,0.001,3616.4,3616.3,8.40909869]
[1762767654978,0.001,3616.8,3616.7,3.17045547]
[1762767655144,0.001,3616.8,3616.7,8.77741789]
[1762767655344,0.001,3616.8,3616.7,9.64212327]
[1762767655545,0.001,3616.8,3616.7,6.83537745]
[1762767655761,0.001,3616.8,3616.7,7.21558283]
[1762767656069,0.001,3616.8,3616.7,7.08978128]
[1762767656267,0.001,3616.8,3616.7,8.06781564]
[1762767656839,0.001,3616.8,3616.7,7.78811319]
[1762767657062,0.001,3616.8,3616.7,5.02316172]
[1762767657258,0.001,3616.8,3616.7,4.04512736]
[1762767657571,0.001,3616.8,3616.7,6.81007883]
[1762767658293,0.001,3616.8,3616.7,6.71007883]
[1762767658673,0.001,3616.8,3616.7,3.94512736]
[1762767659501,0.001,3616.8,3616.7,7.44280586]
[1762767659870,0.001,3616.8,3616.7,11.31180586]
[1762767660295,0.001,3616.8,3616.7,7.68214901]
[1762767660494,0.001,3616.8,3616.7,6.94942198]
[1762767660771,0.001,3616.8,3616.7,7.43392198]
[1762767661692,0.001,3616.8,3616.7,7.40041198]
[1762767661889,0.001,3616.8,3616.7,2.45336259]
[1762767662065,0.474,3616.8,3616.7,1.259712]
[1762767662270,3.2388921,3616.8,3616.6,0.83004657]
[1762767662470,0.474,3616.8,3616.6,0.83004657]
[1762767662774,0.001,3616.8,3616.5,1.259712]
[1762767663099,0.001,3616.8,3616.5,2.08975857]
[1762767663280,2.76587826,3616.8,3616.5,2.08975857]
[1762767663480,2.76588275,3616.8,3616.5,2.08975857]
[1762767663677,0.473,3616.6,3616.5,0.83004657]
[1762767663890,0.473,3616.6,3616.3,0.73272703]
[1762767663891,0.473,3616.6,3616.3,1.259712]
[1762767664096,0.473,3616.6,3616.4,0.473]
[1762767664869,2.76510438,3616.5,3616.4,0.473]
[1762767665076,0.4587,3616.8,3616.1,4.94333392]
[1762767665275,0.4587,3616.8,3616.2,0.73272703]
[1762767665477,2.76500221,3616.7,3616.2,0.73272703]
[1762767665816,2.7649798,3616.7,3616.2,0.73272703]
[1762767666024,0.001,3616.8,3616.2,0.73272703]
[1762767666191,0.25800925,3616.7,3616.2,0.73272703]
[1762767666390,2.76501012,3616.7,3616.2,0.73272703]
[1762767666605,2.76501012,3616.7,3616.2,1.11293241]
[1762767666806,2.76502931,3616.6,3616.3,0.38020538]
[1762767666987,3.22265654,3616.7,3616.3,0.38020538]
[1762767667388,0.473,3616.4,3616.3,0.38020538]
[1762767667704,0.001,3616.8,3616.7,0.4973]
[1762767667891,0.2591581,3616.8,3616.7,0.4973]
[1762767668089,0.2591581,3616.8,3616.7,0.79673725]
[1762767669797,0.2591581,3616.8,3616.6,0.73272703]
[1762767669998,0.2581581,3616.7,3616.6,0.73272703]
[1762767670212,0.7311581,3616.7,3616.6,0.73272703]
[1762767670418,0.7321581,3616.7,3616.6,0.73272703]
[1762767670726,1.1898581,3616.7,3616.5,0.73272703]
[1762767670886,0.2581581,3616.6,3616.4,1.46253436]
[1762767671089,0.001,3616.7,3616.6,0.4973]
[1762767671290,0.25952998,3616.7,3616.6,1.23260359]
[1762767672238,0.25872998,3616.7,3616.6,1.26025386]
[1762767672409,0.25872998,3616.7,3616.6,1.23260359]
[1762767672597,0.25872998,3616.7,3616.6,0.9818]
[1762767672925,0.25872998,3616.7,3616.6,1.32090392]
[1762767673289,0.25872998,3616.7,3616.6,0.83640392]
[1762767674537,0.25881292,3616.7,3616.6,0.83640392]
[1762767674924,0.0002,3616.7,3616.6,13.40883152]
[1762767675093,0.001,3617.1,3617.0,1.665216]
[1762767675438,0.01,3617.9,3617.4,4.42963243]
[1762767675590,0.01,3617.9,3617.4,8.21097762]
[1762767675796,0.01,3617.9,3617.4,10.75525821]
[1762767676021,0.01,3617.9,3617.4,7.99084178]
[1762767676331,0.01,3617.9,3617.4,5.9010762]
[1762767676516,0.01,3617.9,3617.4,9.15747723]
[1762767676838,0.01,3617.9,3617.4,5.83650162]
[1762767677011,2.76431337,3617.6,3617.4,0.4973]
[1762767677832,2.76428286,3617.6,3617.4,1.231568]
[1762767678333,3.49662733,3617.5,3617.2,0.734268]
[1762767678499,2.76454225,3617.3,3617.1,0.734268]
[1762767678829,2.76464571,3617.1,3617.0,0.84489374]
[1762767679028,3.09875945,3617.1,3616.8,0.734268]
[1762767679228,2.76479858,3616.9,3616.8,0.734268]
[1762767679429,2.76479858,3616.9,3616.8,1.56422731]
[1762767679999,2.76479858,3616.9,3616.8,1.49602731]
[1762767680299,2.76479858,3616.9,3616.8,1.99332731]
[1762767680512,3.49617353,3616.9,3616.8,0.666068]
[1762767680701,2.76510438,3616.5,3616.4,0.97910371]
[1762767680921,2.76518084,3616.4,3616.2,0.97910371]
[1762767681466,2.76503464,3616.6,3616.3,0.4973]
[1762767681637,2.76510697,3616.5,3616.3,0.4973]
[1762767681958,0.4577,3616.8,3616.3,0.4973]
[1762767681959,2.76518084,3616.4,3616.3,0.4973]
[1762767683126,3.02362413,3616.4,3616.3,0.4973]
[1762767683321,0.4577,3617.1,3616.3,0.9818]
[1762767683552,2.76509189,3616.6,3616.5,0.4973]
[1762767683750,3.02354092,3616.6,3616.5,0.4973]
[1762767684251,3.02347695,3616.6,3616.5,0.4973]
[1762767685729,0.25844903,3616.6,3616.5,1.30012942]
[1762767685943,0.6473,3617.4,3616.5,1.65678911]
[1762767686157,2.76482048,3616.9,3616.5,1.30012942]
[1762767686363,0.25843489,3616.8,3616.6,0.02765027]
[1762767686564,2.76466206,3617.1,3616.8,0.4531]
[1762767686725,0.25845447,3617.0,3616.6,0.4619]
[1762767686923,2.76441643,3617.4,3616.7,2.38291608]
[1762767687262,2.76472214,3617.0,3616.9,0.4531]
[1762767687461,3.02316058,3617.0,3616.9,0.4531]
[1762767688849,3.48836058,3617.0,3616.6,0.4619]
[1762767689044,0.25843844,3616.9,3616.6,1.44100371]
[1762767689249,2.76485456,3616.9,3616.8,0.4531]
[1762767689449,3.02332978,3616.9,3616.8,0.4531]
[1762767689847,0.25847522,3616.9,3616.8,0.4531]
[1762767690360,3.0232738,3616.9,3616.8,0.4531]
[1762767690879,3.0232738,3616.9,3616.8,4.3221]
[1762767691250,0.001,3617.5,3616.8,5.65504979]
[1762767691251,2.76536768,3617.5,3616.8,5.65504979]
[1762767691445,0.25847008,3617.4,3616.9,0.4619]
[1762767691684,0.25847008,3617.3,3617.0,0.97910371]
[1762767691984,2.76541178,3617.5,3617.4,0.4531]
[1762767692142,3.0238705,3617.5,3617.4,4.3221]
[1762767693382,3.0238705,3617.5,3617.4,3.869]
[1762767693684,3.0238705,3617.5,3617.4,4.3221]
[1762767694150,3.0238705,3617.5,3617.4,3.869]
[1762767694886,3.0238705,3617.5,3617.4,4.65966583]
[1762767695085,3.0238705,3617.5,3617.4,4.3221]
[1762767695487,0.25945872,3617.5,3617.4,4.3221]
[1762767695687,3.02379873,3617.5,3617.4,5.27987089]
[1762767695887,3.02379873,3617.5,3617.4,4.3221]
[1762767696090,3.02379873,3617.5,3617.4,4.65966583]
[1762767696293,3.02299873,3617.5,3617.4,4.65966583]
[1762767696490,0.25865872,3617.5,3617.4,4.65966583]
[1762767696690,0.25865872,3617.5,3617.4,5.12156583]
[1762767696859,0.25865872,3617.5,3617.4,5.75022278]
[1762767697261,0.0002,3617.5,3617.4,5.75022278]
[1762767697483,2.76454001,3617.5,3617.4,5.28832278]
[1762767697684,0.25858627,3617.5,3617.4,4.65966583]
[1762767697874,2.76454001,3617.5,3617.4,4.65966583]
[1762767698386,0.0002,3617.5,3617.4,4.65966583]
[1762767698593,0.0002,3617.5,3617.4,5.14920999]
[1762767699086,0.0002,3617.5,3617.4,5.12156583]
[1762767699398,0.0002,3617.5,3617.4,5.83320563]
[1762767700162,0.0002,3617.5,3617.4,6.81230934]
[1762767700360,0.0002,3617.5,3617.4,5.4956398]
[1762767702087,0.0002,3617.5,3617.4,5.86845563]
[1762767702376,0.0002,3617.5,3617.4,5.4956398]
[1762767702597,0.0002,3617.5,3617.4,5.0337398]
[1762767703466,2.76454001,3617.5,3617.4,5.0337398]
[1762767703665,3.95176653,3617.5,3617.4,3.869]
[1762767704579,2.76441643,3617.4,3617.0,1.259712]
[1762767704780,2.76472214,3617.0,3616.9,0.97910371]
[1762767704980,2.76472214,3617.0,3616.7,2.29805241]
[1762767704981,2.76472214,3617.0,3616.8,0.97910371]
[1762767705418,0.4637,3617.3,3616.8,0.97910371]
[1762767705703,0.4652,3616.9,3616.8,0.97910371]
[1762767705909,0.0002,3617.5,3616.8,0.97910371]
[1762767706078,0.25836641,3617.4,3616.8,1.43220371]
[1762767706276,2.76456928,3617.2,3616.9,1.44100371]
[1762767706478,2.76472214,3617.0,3616.9,1.44100371]
[1762767706684,2.76472214,3617.0,3616.9,0.97910371]
[1762767707131,2.76472214,3617.0,3616.8,0.97910371]
[1762767707773,2.76479858,3616.9,3616.8,0.97910371]
[1762767708210,2.76479858,3616.9,3616.8,1.43220371]
[1762767708589,2.76475078,3617.0,3616.8,1.43220371]
[1762767709396,2.76467213,3617.1,3616.8,1.43220371]
[1762767709598,0.4637,3617.4,3616.9,0.4531]
[1762767709780,0.25847899,3617.3,3617.0,0.4531]
[1762767709981,3.02305127,3617.2,3617.0,0.4531]
[1762767710189,2.76457228,3617.2,3617.0,0.4531]
[1762767710506,2.76457228,3617.2,3617.1,0.4531]
[1762767710820,2.76457228,3617.2,3616.8,1.44100371]
[1762767710821,0.25848319,3617.2,3616.8,1.44100371]
[1762767711036,2.76456928,3617.2,3616.8,1.44100371]
[1762767711193,2.76474048,3617.0,3616.8,1.44100371]
[1762767711386,2.76474048,3617.0,3616.8,0.97910371]
[1762767711894,2.76467277,3617.1,3616.8,0.97910371]
[1762767712717,0.4639,3617.5,3616.8,0.97910371]
[1762767713040,0.2585582,3617.4,3617.0,0.4701]
[1762767713326,0.2585582,3617.3,3617.0,0.97910371]
[1762767713623,2.76472214,3617.0,3616.9,0.97910371]
[1762767713813,3.23356163,3617.1,3616.9,0.97910371]
[1762767714010,0.5317,3617.0,3616.9,0.97910371]
[1762767714522,0.0615,3617.0,3616.9,0.97910371]
[1762767714725,3.29642214,3617.0,3616.9,0.97910371]
[1762767714924,0.79040208,3617.0,3616.8,0.97910371]
[1762767715224,2.76479858,3616.9,3616.8,0.97910371]
[1762767715429,3.22959858,3616.9,3616.8,0.97910371]
[1762767716598,0.4648,3616.9,3616.8,0.97910371]
[1762767716947,2.76449285,3617.3,3616.8,1.44710371]
[1762767717125,0.25879373,3617.2,3616.9,0.97910371]
[1762767717446,3.02349579,3617.1,3616.9,0.97910371]
[1762767717734,0.73149373,3617.0,3616.9,0.97910371]
[1762767718028,2.76462503,3617.2,3616.9,5.56337062]
[1762767718226,0.25877454,3617.1,3617.0,0.98163717]
[1762767718469,0.25877454,3617.1,3617.0,1.354453]
[1762767718803,3.02342025,3617.1,3617.0,1.354453]
[1762767719060,2.76472214,3617.0,3616.9,4.85063717]
[1762767719210,3.02349668,3617.0,3616.9,4.85063717]
[1762767719411,3.49619668,3617.0,3616.9,4.85063717]
[1762767720126,3.49539668,3617.0,3616.9,4.85063717]
[1762767720335,3.99039668,3617.0,3616.9,4.85063717]
[1762767720838,0.25877454,3617.0,3616.9,5.31863717]
[1762767721037,0.25877454,3617.0,3616.9,5.45542647]
[1762767721241,0.4952,3617.5,3616.9,6.34219028]
[1762767721449,0.25883006,3617.4,3617.1,0.98183069]
[1762767721654,0.0002,3617.5,3617.4,3.42641643]
[1762767721960,0.0002,3617.5,3617.4,11.03053886]
[1762767722121,0.0002,3617.5,3617.4,10.79800251]
[1762767722443,0.0002,3617.5,3617.4,11.14107668]
[1762767723454,0.0002,3617.5,3617.4,13.10076572]
[1762767723814,0.0002,3617.5,3617.4,11.14107668]
[1762767724555,0.0002,3617.5,3617.4,12.75658787]
[1762767725150,0.0002,3617.5,3617.4,10.79800251]
[1762767728010,0.0002,3617.5,3617.4,10.31170251]
[1762767728216,0.0002,3617.5,3617.4,11.17549334]
[1762767730952,0.0002,3617.5,3617.4,7.30649334]
[1762767733355,0.0002,3617.5,3617.4,7.28183501]
[1762767733569,0.0002,3617.5,3617.4,6.92900251]
[1762767734370,0.0002,3617.5,3617.4,7.28183501]
[1762767737273,0.0002,3617.5,3617.4,4.59484651]
[1762767737474,0.4729,3617.5,3617.4,5.50948646]
[1762767737661,0.0002,3617.5,3617.4,6.76919846]
[1762767737981,0.4729,3617.5,3617.4,6.76919846]
[1762767738385,0.4729,3617.5,3617.4,1.259712]
[1762767738680,0.0002,3617.5,3617.4,5.96426438]
[1762767739164,0.0002,3617.5,3617.4,5.49626438]
[1762767741285,0.4729,3617.5,3617.4,2.73184795]
[1762767741465,0.4729,3617.5,3617.4,5.49626438]
[1762767741793,0.4729,3617.5,3617.4,5.49826438]
[1762767741952,0.4729,3617.5,3617.4,4.52112843]
[1762767742152,0.0002,3617.5,3617.4,9.86251005]
[1762767742375,0.011,3617.9,3617.7,0.405504]
[1762767742575,0.011,3617.9,3617.8,3.965314]
[1762767743084,0.011,3617.9,3617.8,0.84382559]
[1762767743085,0.4837,3617.9,3617.8,0.84382559]
[1762767743273,0.4837,3617.9,3617.8,0.11062237]
[1762767744308,0.9779,3617.9,3617.8,0.84382559]
[1762767745192,1.1683,3617.9,3617.7,0.73320322]
[1762767745399,0.505,3617.8,3617.6,3.8688]
[1762767745581,0.4751,3617.7,3617.6,5.128512]
[1762767746188,0.9565,3617.7,3617.6,5.128512]
[1762767746796,3.72068719,3617.7,3617.6,5.128512]
[1762767746989,2.76434001,3617.5,3617.4,0.002]
[1762767747199,3.23944001,3617.5,3617.4,0.002]
[1762767747500,3.72084001,3617.5,3617.4,0.002]
[1762767747794,3.97921913,3617.5,3617.4,0.002]
[1762767751098,1.21487912,3617.5,3617.4,0.002]
[1762767752412,1.21485955,3617.5,3617.4,0.002]
[1762767752620,2.96464766,3617.9,3617.4,0.002]
[1762767752621,2.76413665,3617.8,3617.4,0.002]
[1762767752921,0.4751,3617.5,3617.4,0.73654615]
[1762767753414,3.97916753,3617.5,3617.4,0.002]
[1762767754428,0.0102,3617.9,3617.4,0.002]
[1762767754596,0.25829616,3617.8,3617.5,0.73465247]
[1762767754801,0.0102,3617.9,3617.7,1.259712]
[1762767755090,0.0102,3617.9,3617.7,1.735112]
[1762767755390,0.0102,3617.9,3617.7,1.259712]
[1762767755698,0.0102,3617.9,3617.6,1.45900429]
[1762767756021,0.0102,3617.9,3617.7,1.71990941]
[1762767756827,0.0102,3617.9,3617.8,1.735112]
[1762767757029,0.0102,3617.9,3617.8,0.4754]
[1762767757892,0.0102,3617.9,3617.8,7.74931441]
[1762767758428,0.0102,3617.9,3617.8,4.49922278]
[1762767758630,0.0102,3617.9,3617.8,5.46556794]
[1762767759495,0.4853,3617.9,3617.8,2.22605716]
[1762767760234,0.0102,3617.9,3617.8,2.22605716]
[1762767760613,0.4853,3617.9,3617.8,2.22605716]
[1762767762414,0.0102,3617.9,3617.8,2.70145716]
[1762767762797,0.0102,3617.9,3617.8,2.22605716]
[1762767763329,0.4853,3617.9,3617.8,3.20366145]
[1762767763707,0.4853,3617.9,3617.8,2.22605716]
[1762767764332,0.4853,3617.9,3617.8,3.20366145]
[1762767764632,0.0102,3617.9,3617.8,3.67906145]
[1762767765334,0.0102,3617.9,3617.8,3.20366145]
[1762767765532,0.4853,3617.9,3617.8,3.20366145]
[1762767767314,0.4853,3617.9,3617.8,2.23731629]
[1762767768117,0.4845,3617.9,3617.8,2.23731629]
[1762767768434,0.6749,3617.9,3617.8,0.97760429]
[1762767768597,1.1563,3617.9,3617.7,0.97760429]
[1762767768796,0.0094,3617.9,3617.7,3.74177883]
[1762767769234,0.0094,3617.9,3617.7,0.97760429]
[1762767769596,0.4751,3617.8,3617.7,0.97760429]
[1762767770818,0.0094,3617.9,3617.7,4.21719148]
[1762767771338,0.0094,3617.9,3617.8,3.8688]
[1762767773417,0.0094,3617.9,3617.8,11.3438067]
[1762767773640,0.0094,3617.9,3617.8,12.44003971]
[1762767773938,0.0094,3617.9,3617.8,13.26970981]
[1762767774236,0.0094,3617.9,3617.8,12.59936136]
[1762767774536,0.0094,3617.9,3617.8,13.5784402]
[1762767774736,0.0094,3617.9,3617.8,13.85907336]
[1762767774941,0.0094,3617.9,3617.8,13.89782336]
[1762767775631,0.0094,3617.9,3617.8,15.75559656]
[1762767775942,0.0094,3617.9,3617.8,18.67270402]
[1762767776110,0.0094,3617.9,3617.8,15.42261239]
[1762767776818,0.25852841,3618.4,3618.2,2.7638052]
[1762767777011,3.21978258,3618.8,3618.3,7.84352518]
[1762767777202,0.25850133,3618.7,3618.3,7.84352518]
[1762767777407,0.25850133,3618.6,3618.4,0.31154584]
[1762767777742,0.72000133,3618.5,3618.4,0.31154584]
[1762767778246,1.17640133,3618.5,3618.3,4.59343355]
[1762767778449,0.32360133,3618.4,3618.3,4.59343355]
[1762767779442,0.32360133,3618.4,3618.3,3.8594]
[1762767783029,0.32360133,3618.4,3618.3,6.62312882]
[1762767783223,0.001,3618.7,3618.4,1.259712]
[1762767783425,0.25869237,3618.6,3618.5,0.97885466]
[1762767783838,1.17659237,3618.6,3618.5,0.97885466]
[1762767784038,0.9179,3618.6,3618.5,0.97885466]
[1762767784373,0.9179,3618.6,3618.3,11.0784174]
[1762767784374,1.17668686,3618.6,3618.3,5.32768199]
[1762767784572,1.17668686,3618.6,3618.3,6.09857016]
[1762767784573,0.4615,3618.4,3618.3,6.09857016]
[1762767784727,0.72028686,3618.4,3618.3,6.09857016]
[1762767784923,1.17668686,3618.4,3618.3,6.09857016]
[1762767787370,3.9403393,3618.4,3618.3,4.83885816]
[1762767787572,3.9403393,3618.4,3618.3,3.8594]